fUSD/lending_fUSD_20260321
["ID","MTS","AMOUNT","RATE_DAILY","PERIOD"]
[408696235,1774135835775,-2403.0,0.00015873,2]
[408696236,1774135835784,-702.0,0.00015886,2]
[408696237,1774135835794,-1121.83,0.00015887,2]
[408696238,1774135835803,-500.0,0.00015899,2]
[408696239,1774135835812,-500.0,0.00015899,2]
[408696240,1774135835822,-500.0,0.00015899,2]
[408696241,1774135835830,-500.0,0.00015899,2]
[408696242,1774135835840,-500.0,0.00015899,2]
[408696243,1774135835849,-569.64418973,0.00015899,2]
[408696244,1774135835858,-500.0,0.00015899,2]
[408696245,1774135835867,-500.0,0.00015899,2]
[408696246,1774135835876,-500.0,0.00015899,2]
[408696247,1774135835885,-500.0,0.00015899,2]
[408696248,1774135835894,-500.0,0.00015899,2]
[408696249,1774135835903,-500.0,0.00015899,2]
[408696250,1774135835912,-500.0,0.00015899,2]
[408696251,1774135835921,-338.47316987,0.00015899,2]
[408696252,1774135835930,-500.0,0.00015899,2]
[408696253,1774135835939,-500.0,0.00015899,2]
[408696254,1774135835948,-441.16865267,0.00015899,2]
[408696255,1774135835957,-500.0,0.00015899,2]
[408696256,1774135835966,-500.0,0.00015899,2]
[408696257,1774135835975,-500.0,0.00015899,2]
[408696258,1774135835984,-500.0,0.00015899,2]
[408696259,1774135835993,-282.40708321,0.00015899,2]
[408696260,1774135836002,-230.90694378,0.00015899,2]
[408696261,1774135836011,-239.48568211,0.00015899,2]
[408696262,1774135836020,-236.30195805,0.00015899,2]
[408696263,1774135836030,-515.98906006,0.00015899,2]
[408696264,1774135836039,-271.72093053,0.000159,2]
[408696265,1774135836048,-32981.2159,0.000159,2]
[408696266,1774135836057,-337044.73706088,0.000159,2]
[408696267,1774135836074,-1870.04017089,0.000159,2]
[408696269,1774135837593,-464.36667372,0.00013748,2]
[408696270,1774135837605,-2034.72488918,0.00013748,2]
[408696271,1774135837616,-482.51934561,0.00013748,2]
[408696272,1774135837629,-3627.89571575,0.00013748,2]
[408696273,1774135837639,-6609.50662426,0.00014055,2]
[408696274,1774135837648,-424.93655182,0.00014256,2]
[408696275,1774135837657,-5533.0,0.000148,5]
[408696276,1774135837667,-214818.96351267,0.000159,2]
[408696301,1774135840170,-32981.2159,0.00012972,2]
[408696302,1774135840179,-500.0,0.00013699,2]
[408696303,1774135840189,-152.96986947,0.00013973,2]
[408696304,1774135840198,-1946266.25925556,0.000159,2]
[408696305,1774135840207,-1000.0,0.000159,2]
[408696306,1774135840216,-658.09,0.000159,2]
[408696307,1774135840224,-201.92,0.000159,2]
[408696308,1774135840233,-1100.17,0.000159,2]
[408696309,1774135840242,-464.47,0.000159,2]
[408696310,1774135840250,-10000.0,0.000159,2]
[408696311,1774135840259,-2925.56621861,0.000159,2]
[408696312,1774135840268,-1305.20149029,0.000159,2]
[408696313,1774135840277,-219.64565239,0.000159,2]
[408696314,1774135840285,-4139.9137713,0.000159,2]
[408696315,1774135840294,-200.0,0.000159,5]
[408696316,1774135840303,-1424.0,0.000159,5]
[408696317,1774135840312,-657.0,0.0001593,2]
[408696318,1774135840321,-702.0,0.00015963,2]
[408696319,1774135840330,-500.0,0.00015973,2]
[408696320,1774135840339,-500.0,0.00015973,2]
[408696321,1774135840347,-399.90719368,0.00015973,2]
[408696322,1774135840356,-500.0,0.00015973,2]
[408696323,1774135840365,-500.0,0.00015973,2]
[408696324,1774135840374,-500.0,0.00015973,2]
[408696325,1774135840383,-500.0,0.00015973,2]
[408696326,1774135840391,-500.0,0.00015973,2]
[408696327,1774135840400,-500.0,0.00015973,2]
[408696328,1774135840410,-500.0,0.00015973,2]
[408696329,1774135840421,-500.0,0.00015973,2]
[408696331,1774135840431,-500.0,0.00015973,2]
[408696332,1774135840440,-500.0,0.00015973,2]
[408696333,1774135840448,-500.0,0.00015973,2]
[408696334,1774135840457,-500.0,0.00015973,2]
[408696335,1774135840466,-500.0,0.00015973,2]
[408696336,1774135840474,-500.0,0.00015973,2]
[408696337,1774135840484,-500.0,0.00015973,2]
[408696338,1774135840492,-500.0,0.00015973,2]
[408696340,1774135840501,-500.0,0.00015973,2]
[408696341,1774135840511,-500.0,0.00015973,2]
[408696342,1774135840520,-500.0,0.00015973,2]
[408696343,1774135840529,-500.0,0.00015973,2]
[408696344,1774135840538,-500.0,0.00015973,2]
[408696345,1774135840548,-500.0,0.00015973,2]
[408696346,1774135840557,-226.57620935,0.00015973,2]
[408696347,1774135840566,-500.0,0.00015973,2]
[408696348,1774135840576,-500.0,0.00015973,2]
[408696349,1774135840585,-500.0,0.00015973,2]
[408696350,1774135840594,-500.0,0.00015973,2]
[408696351,1774135840603,-500.0,0.00015973,2]
[408696352,1774135840612,-500.0,0.00015973,2]
[408696353,1774135840622,-501.28770509,0.00015973,2]
[408696354,1774135840631,-500.0,0.00015973,2]
[408696355,1774135840640,-500.0,0.00015973,2]
[408696356,1774135840649,-500.0,0.00015973,2]
[408696357,1774135840659,-500.0,0.00015973,2]
[408696358,1774135840668,-500.0,0.00015973,2]
[408696359,1774135840678,-389.88183382,0.00015973,2]
[408696360,1774135840687,-500.0,0.00015973,2]
[408696361,1774135840696,-500.0,0.00015973,2]
[408696362,1774135840705,-500.0,0.00015973,2]
[408696363,1774135840714,-163.0,0.00015978,2]
[408696364,1774135840723,-244.0,0.00015978,2]
[408696365,1774135840731,-151.0,0.00015997,2]
[408696366,1774135840741,-151.0,0.00015997,2]
[408696367,1774135840750,-151.0,0.00015997,2]
[408696368,1774135840759,-45000.8553709,0.00015999,2]
[408696369,1774135840771,-3138.401827,0.00015999,2]
[408696370,1774135840780,-1065568.7004967,0.00015999,2]
[408696371,1774135840789,-2324.6618381,0.00015999,2]
[408696372,1774135840798,-21914.9693574,0.00015999,2]
[408696373,1774135840809,-150.0,0.00015999,2]
[408696374,1774135840818,-5478.7423394,0.00015999,2]
[408696375,1774135840826,-215831.8477118,0.00015999,2]
[408696376,1774135840836,-1785.0,0.00016,5]
[408696377,1774135840845,-2280297.0285382,0.00016,2]
[408696382,1774135842843,-6609.50662426,0.00014363,2]
[408696383,1774135842854,-137077.40688784,0.00016,2]
[408696436,1774135846516,-7014.3,0.000159,2]
[408696437,1774135852046,5000.01,0.00012623,2]
[408696438,1774135852069,5000.01,0.00012623,2]
[408696439,1774135852092,5000.01,0.00012623,2]
[408696440,1774135869913,151.0,0.0001262,2]
[408696441,1774135893399,3464.851,0.00012371,2]
[408696442,1774135893573,180.052,0.00012371,2]
[408696443,1774135929088,6204.107,0.00012559,2]
[408696444,1774135929110,4529.581194,0.00012559,2]
[408696445,1774135929543,151.0,0.0001262,2]
[408696446,1774135981986,150.0,0.00012622,2]
[408696447,1774135989258,369.1929,0.00012622,2]
[408696448,1774136041031,300.0,0.00012622,2]
[408696449,1774136065215,1001.30284344,0.00012572,2]
[408696450,1774136101149,300.0,0.00012622,2]
[408696451,1774136101177,1200.0,0.00012622,2]
[408696452,1774136139970,1862.3592182,0.00012572,2]
[408696453,1774136152975,511.4210386,0.00012622,2]
[408696454,1774136153292,167.63997748,0.00012622,2]
[408696455,1774136153337,500.0,0.00012622,2]
[408696456,1774136153404,249.65919841,0.00012622,2]
[408696457,1774136153488,500.0,0.00012622,2]
[408696458,1774136158187,500.0,0.00012622,2]
[408696459,1774136158219,500.0,0.00012622,2]
[408696460,1774136158254,500.0,0.00012622,2]
[408696461,1774136158289,500.0,0.00012622,2]
[408696462,1774136158349,500.0,0.00012622,2]
[408696463,1774136158382,388.43482387,0.00012622,2]
[408696464,1774136158407,111.56517613,0.00012622,2]
[408696465,1774136158438,500.0,0.00012622,2]
[408696466,1774136158468,500.0,0.00012622,2]
[408696467,1774136158499,500.0,0.00012622,2]
[408696468,1774136158540,500.0,0.00012622,2]
[408696469,1774136158573,500.0,0.00012622,2]
[408696470,1774136158612,500.0,0.00012622,2]
[408696471,1774136158648,500.0,0.00012622,2]
[408696472,1774136158679,500.0,0.00012622,2]
[408696473,1774136158712,500.0,0.00012622,2]
[408696474,1774136158745,500.0,0.00012622,2]
[408696475,1774136158778,500.0,0.00012622,2]
[408696476,1774136158811,500.0,0.00012622,2]
[408696477,1774136158843,500.0,0.00012622,2]
[408696478,1774136158915,500.0,0.00012622,2]
[408696479,1774136158950,500.0,0.00012622,2]
[408696480,1774136158985,500.0,0.00012622,2]
[408696481,1774136159018,500.0,0.00012622,2]
[408696482,1774136159092,500.0,0.00012622,2]
[408696483,1774136159126,500.0,0.00012622,2]
[408696484,1774136159159,388.44482387,0.00012622,2]
[408696485,1774136159184,111.55517613,0.00012622,2]
[408696486,1774136159213,500.0,0.00012622,2]
[408696487,1774136159244,500.0,0.00012622,2]
[408696488,1774136159274,500.0,0.00012622,2]
[408696489,1774136159306,500.0,0.00012622,2]
[408696490,1774136159337,500.0,0.00012622,2]
[408696491,1774136159367,500.0,0.00012622,2]
[408696492,1774136159399,500.0,0.00012622,2]
[408696493,1774136159499,500.0,0.00012622,2]
[408696494,1774136159546,500.0,0.00012622,2]
[408696495,1774136159598,500.0,0.00012622,2]
[408696496,1774136159695,500.0,0.00012622,2]
[408696497,1774136159824,500.0,0.00012622,2]
[408696498,1774136159865,500.0,0.00012622,2]
[408696499,1774136159957,500.0,0.00012622,2]
[408696500,1774136159998,500.0,0.00012622,2]
[408696501,1774136160057,500.0,0.00012622,2]
[408696502,1774136160118,500.0,0.00012622,2]
[408696503,1774136160157,500.0,0.00012622,2]
[408696504,1774136160232,500.0,0.00012622,2]
[408696505,1774136160284,500.0,0.00012622,2]
[408696506,1774136162219,150.0,0.00012622,2]
[408696507,1774136165205,173.0,0.00012623,2]
[408696508,1774136252923,-428.58740934,0.00012598,2]
[408696509,1774136252952,-1864.59673683,0.00012598,2]
[408696510,1774136252989,-1168.20962763,0.00012598,2]
[408696511,1774136259048,-3077.2224524,0.00012598,2]
[408696512,1774136259079,-1096.28331036,0.00012598,2]
[408696513,1774136298136,1671.88316699,0.00012523,2]
[408696514,1774136305341,1110.0,0.00012558,2]
[408696515,1774136326671,285.72493956,0.00012523,2]
[408696516,1774136366722,6665.30790525,0.00012523,2]
[408696517,1774136372457,2500.0,0.00012523,2]
[408696518,1774136445469,1485.89166721,0.00012523,2]
[408696519,1774136451775,500.0,0.00012522,2]
[408696520,1774136471946,190.48329304,0.00012523,2]
[408696521,1774136493439,2771.881,0.00012371,2]
[408696522,1774136493690,51.75403975,0.00012371,2]
[408696523,1774136493713,128.29796025,0.00012371,2]
[408696530,1774136617163,190.48329304,0.00012523,2]
[408696531,1774136635944,1385.45161757,0.00012523,2]
[408696532,1774136642220,3295.77712914,0.00012523,2]
[408696533,1774136642245,3546.15667936,0.00012523,2]
[408696534,1774136663907,5000.01,0.00012523,2]
[408696535,1774136663927,5000.01,0.00012523,2]
[408696536,1774136684425,1773.1987462,0.00012523,2]
[408696537,1774136701208,1200.0,0.00012522,2]
[408696538,1774136701266,300.0,0.00012522,2]
[408696539,1774136701451,300.0,0.00012522,2]
[408696540,1774136702303,150.0,0.00012522,2]
[408696541,1774136702888,300.0,0.00012522,2]
[408696542,1774136729370,303.02233026,0.00011866,2]
[408696543,1774136750403,225.0,0.00010085,2]
[408696544,1774136751108,225.0,0.00011042,2]
[408696545,1774136751821,226.0,0.00011594,2]
[408696546,1774136752435,1904.83293036,0.00012523,2]
[408696547,1774136753593,-88515.6805,0.00012523,2]
[408696548,1774136753616,-211981.8196,0.00012523,2]
[408696549,1774136753636,-173.0,0.00012572,3]
[408696550,1774136753657,-182.0,0.00012572,3]
[408696551,1774136753678,-250.0,0.00012613,2]
[408696552,1774136753699,-7095.03160234,0.00012613,2]
[408696553,1774136753729,-417.2119034,0.00012613,2]
[408696554,1774136753753,-385.25639426,0.00012615,2]
[408696555,1774136842088,-2500.0,0.00012523,2]
[408696556,1774136842112,-1855.09632314,0.00012552,2]
[408696557,1774136851110,-155.5963347,0.00012552,2]
[408696558,1774136882089,150.0,0.00012522,2]
[408696559,1774136882958,300.0,0.00012522,2]
[408696560,1774136883402,2642.95599318,0.0001246,2]
[408696561,1774136883424,2333.74065582,0.0001246,2]
[408696562,1774136934954,500.0,0.00012423,2]
[408696563,1774136946984,173.0,0.00012523,2]
[408696564,1774136955090,-823.2,0.00012523,2]
[408696565,1774136992740,2000.0,0.00011886,2]
[408696566,1774137001360,1200.0,0.00012522,2]
[408696567,1774137004311,253.0,0.00012523,2]
[408696568,1774137010435,173.0,0.00012523,2]
[408696569,1774137014796,455.4661363,0.00012513,2]
[408696570,1774137021878,1389.43775397,0.00012427,2]
[408696583,1774137031639,-430.74180947,0.00012523,2]
[408696592,1774137031708,-812873.31657947,0.00012523,2]
[408696594,1774137031721,-202607.86545723,0.00012523,2]
[408696597,1774137031733,-250409.46560558,0.00012523,2]
[408696599,1774137031745,-232855.41054825,0.00012523,2]
[408696600,1774137031754,-5000.0,0.00012527,2]
[408696601,1774137031764,-150.0,0.0001253,2]
[408696602,1774137031773,-284.69808,0.00012532,2]
[408696603,1774137031784,-5000.0,0.00012557,2]
[408696604,1774137031793,-3449.92814276,0.00012561,2]
[408696605,1774137031802,-250.0,0.00012583,2]
[408696606,1774137031811,-200.0,0.000126,4]
[408696607,1774137031820,-500.0,0.00012615,2]
[408696608,1774137031830,-500.0,0.00012615,2]
[408696609,1774137031839,-500.0,0.00012615,2]
[408696610,1774137031849,-500.0,0.00012615,2]
[408696611,1774137031858,-500.0,0.00012615,2]
[408696612,1774137031867,-500.0,0.00012615,2]
[408696613,1774137031876,-200.0,0.00012615,2]
[408696614,1774137031887,-500.0,0.00012615,2]
[408696615,1774137031897,-151.0,0.00012615,2]
[408696616,1774137031906,-283.98219681,0.00012615,2]
[408696617,1774137031915,-151.0,0.00012615,2]
[408696618,1774137031925,-151.0,0.00012615,2]
[408696619,1774137031934,-151.0,0.00012615,2]
[408696620,1774137031943,-151.0,0.00012615,2]
[408696622,1774137031952,-151.0,0.00012615,2]
[408696624,1774137031961,-151.0,0.00012615,2]
[408696625,1774137031979,-151.0,0.00012615,2]
[408696626,1774137031990,-151.0,0.00012615,2]
[408696627,1774137032000,-151.0,0.00012615,2]
[408696628,1774137032009,-151.0,0.00012615,2]
[408696629,1774137032018,-151.0,0.00012615,2]
[408696630,1774137032027,-151.0,0.00012615,2]
[408696631,1774137032036,-151.0,0.00012615,2]
[408696632,1774137032047,-151.0,0.00012615,2]
[408696633,1774137032057,-151.0,0.00012615,2]
[408696634,1774137032066,-151.0,0.00012615,2]
[408696635,1774137032077,-151.0,0.00012615,2]
[408696637,1774137032090,-151.0,0.00012615,2]
[408696639,1774137032099,-151.0,0.00012615,2]
[408696641,1774137032108,-151.0,0.00012615,2]
[408696643,1774137032119,-283.62166643,0.00012615,2]
[408696645,1774137032128,-151.0,0.00012615,2]
[408696647,1774137032137,-151.0,0.00012615,2]
[408696649,1774137032147,-151.0,0.00012615,2]
[408696651,1774137032156,-151.0,0.00012615,2]
[408696653,1774137032166,-151.0,0.00012615,2]
[408696655,1774137032176,-151.0,0.00012615,2]
[408696657,1774137032186,-151.0,0.00012615,2]
[408696659,1774137032195,-151.0,0.00012615,2]
[408696661,1774137032205,-151.0,0.00012615,2]
[408696663,1774137032214,-1000.0,0.00012622,2]
[408696665,1774137032224,-1000.0,0.00012622,2]
[408696667,1774137032233,-500.0,0.00012622,2]
[408696668,1774137032243,-841.38,0.00012622,2]
[408696669,1774137032252,-500.0,0.00012622,2]
[408696670,1774137032262,-511.4210386,0.00012622,2]
[408696673,1774137032496,-500.0,0.00012622,2]
[408696674,1774137032507,-500.0,0.00012622,2]
[408696675,1774137032518,-500.0,0.00012622,2]
[408696676,1774137032528,-500.0,0.00012622,2]
[408696677,1774137032538,-500.0,0.00012622,2]
[408696678,1774137032550,-500.0,0.00012622,2]
[408696679,1774137032560,-500.0,0.00012622,2]
[408696680,1774137032570,-500.0,0.00012622,2]
[408696681,1774137032580,-500.0,0.00012622,2]
[408696682,1774137032590,-500.0,0.00012622,2]
[408696683,1774137032600,-500.0,0.00012622,2]
[408696684,1774137032610,-500.0,0.00012622,2]
[408696685,1774137032619,-500.0,0.00012622,2]
[408696686,1774137032629,-500.0,0.00012622,2]
[408696687,1774137032640,-500.0,0.00012622,2]
[408696688,1774137032650,-500.0,0.00012622,2]
[408696689,1774137032659,-500.0,0.00012622,2]
[408696690,1774137032673,-500.0,0.00012622,2]
[408696691,1774137032683,-500.0,0.00012622,2]
[408696692,1774137032693,-500.0,0.00012622,2]
[408696693,1774137032702,-500.0,0.00012622,2]
[408696694,1774137032712,-500.0,0.00012622,2]
[408696695,1774137032722,-500.0,0.00012622,2]
[408696696,1774137032732,-500.0,0.00012622,2]
[408696697,1774137032741,-500.0,0.00012622,2]
[408696698,1774137032751,-500.0,0.00012622,2]
[408696699,1774137032760,-500.0,0.00012622,2]
[408696700,1774137032770,-500.0,0.00012622,2]
[408696701,1774137032780,-500.0,0.00012622,2]
[408696702,1774137032789,-500.0,0.00012622,2]
[408696703,1774137032800,-500.0,0.00012622,2]
[408696704,1774137032809,-500.0,0.00012622,2]
[408696705,1774137032820,-500.0,0.00012622,2]
[408696706,1774137032830,-366.12709315,0.00012622,2]
[408696707,1774137032841,-500.0,0.00012622,2]
[408696708,1774137032851,-500.0,0.00012622,2]
[408696709,1774137032860,-468.30120589,0.00012622,2]
[408696710,1774137032870,-500.0,0.00012622,2]
[408696711,1774137032879,-500.0,0.00012622,2]
[408696712,1774137032889,-500.0,0.00012622,2]
[408696713,1774137032899,-500.0,0.00012622,2]
[408696714,1774137032909,-500.0,0.00012622,2]
[408696715,1774137032918,-220.19964963,0.00012622,2]
[408696716,1774137032928,-500.0,0.00012622,2]
[408696717,1774137032937,-197.36658827,0.00012622,2]
[408696718,1774137032947,-310.11101329,0.00012622,2]
[408696719,1774137032956,-500.0,0.00012622,2]
[408696720,1774137032966,-150.99,0.00012623,2]
[408696721,1774137032975,-999.99,0.00012623,2]
[408696722,1774137032984,-57559.52,0.00012623,2]
[408696723,1774137032993,-299.99,0.00012623,2]
[408696724,1774137033002,-150.99,0.00012623,2]
[408696725,1774137033012,-9999.99,0.00012623,2]
[408696726,1774137033021,-500.0,0.00012623,2]
[408696727,1774137033031,-200.0,0.00012623,2]
[408696728,1774137033041,-3816.88,0.00012623,2]
[408696729,1774137033054,-937.70730537,0.00012623,2]
[408696730,1774137033067,-881.66269463,0.00012623,2]
[408696731,1774137033078,-372.75539214,0.00012623,2]
[408696732,1774137033089,-276.36099284,0.00012623,2]
[408696733,1774137033100,-321.0,0.00012623,2]
[408696737,1774137037689,-9029.87361502,0.00012623,2]
[408696739,1774137037699,-19999.99,0.00012623,2]
[408696740,1774137037709,-386.48050515,0.00012661,2]
[408696741,1774137037718,-500.0,0.000127,4]
[408696742,1774137037728,-200.0,0.00012749,2]
[408696743,1774137037738,-800.0,0.000128,4]
[408696744,1774137037747,-1005.39,0.00012861,2]
[408696745,1774137037756,-197.0,0.00012869,2]
[408696746,1774137037766,-562.0,0.00012874,2]
[408696747,1774137037775,-575.0,0.00012884,2]
[408696748,1774137037785,-484.4667415,0.00012894,2]
[408696749,1774137037794,-500.0,0.00012896,2]
[408696750,1774137037804,-841.38,0.00012896,2]
[408696751,1774137037813,-1100.0,0.000129,4]
[408696752,1774137037823,-1389.43775394,0.00012923,2]
[408696753,1774137037832,-1000.0,0.00012972,2]
[408696754,1774137037842,-1000.0,0.00012999,2]
[408696755,1774137037851,-544.25045041,0.00013024,2]
[408696756,1774137037860,-1161.72284088,0.00013024,2]
[408696757,1774137037870,-1339.03480247,0.00013024,2]
[408696758,1774137037879,-27383.97329068,0.00013032,2]
[408696759,1774137038033,-552.93113016,0.00013032,2]
[408696760,1774137038048,-450.0,0.00013032,2]
[408696761,1774137038059,-4594.31147916,0.00013032,2]
[408696762,1774137038071,-9258.66,0.00013046,2]
[408696763,1774137038084,-208.25,0.0001312,2]
[408696764,1774137038093,-200.0,0.00013163,2]
[408696765,1774137038103,-500.0,0.0001317,2]
[408696766,1774137038112,-841.38,0.0001317,2]
[408696767,1774137038124,-3935.56,0.00013182,2]
[408696768,1774137038133,-386.48050511,0.00013201,2]
[408696769,1774137038144,-1155.85859057,0.00013372,2]
[408696770,1774137038156,-813.22344018,0.00013372,2]
[408696771,1774137038168,-30.91796925,0.00013372,2]
[408696773,1774137038177,-301.8531687,0.00013419,2]
[408696775,1774137038188,-1087.58458524,0.00013419,2]
[408696777,1774137038197,-1852.42,0.00013429,2]
[408696779,1774137038207,-3350.0138261,0.0001343,2]
[408696781,1774137038217,-5834.9961739,0.0001343,2]
[408696783,1774137038227,-500.0,0.00013444,2]
[408696785,1774137038236,-841.38,0.00013444,2]
[408696787,1774137038245,-311.4,0.0001347,2]
[408696789,1774137038254,-278.35,0.0001347,2]
[408696791,1774137038263,-150.0,0.00013502,2]
[408696793,1774137038273,-1301.12176415,0.00013607,2]
[408696794,1774137038284,-298.87823585,0.00013607,2]
[408696795,1774137038294,-255.0,0.00013611,2]
[408696796,1774137038304,-982.28548824,0.00013699,2]
[408696797,1774137038316,-496.78451176,0.00013699,2]
[408696798,1774137038325,-2103.87179965,0.00013699,2]
[408696799,1774137038338,-1001.350002,0.00013699,2]
[408696800,1774137038356,-707.81819835,0.00013699,2]
[408696801,1774137038366,-161.63486065,0.00013699,2]
[408696802,1774137038375,-505.4,0.000137,2]
[408696803,1774137038384,-810.43,0.000137,2]
[408696804,1774137038397,-162.21,0.000137,2]
[408696805,1774137038406,-152.96986947,0.00013718,2]
[408696806,1774137038415,-841.38,0.00013718,2]
[408696807,1774137038424,-300.0,0.00013739,2]
[408696808,1774137038434,-386.48050511,0.00013741,2]
[408696809,1774137038443,-964.289653,0.00013774,2]
[408696810,1774137038459,-715.710347,0.00013774,2]
[408696811,1774137038468,-1540.99520965,0.00013775,2]
[408696814,1774137039922,-3459.00479035,0.00013775,2]
[408696815,1774137039932,-5000.0,0.00013775,2]
[408696816,1774137039941,-166.7,0.00013778,2]
[408696817,1774137039951,-1194.5,0.00013784,2]
[408696818,1774137039959,-250.0,0.00013807,2]
[408696819,1774137039968,-195.0,0.00013807,2]
[408696820,1774137039977,-195.0,0.00013807,2]
[408696821,1774137039986,-195.0,0.00013807,2]
[408696822,1774137039995,-195.0,0.00013807,2]
[408696823,1774137040004,-195.0,0.00013807,2]
[408696824,1774137040013,-3240.0,0.00013834,2]
[408696825,1774137040022,-250.0,0.00013877,2]
[408696826,1774137040031,-201.92,0.000139,2]
[408696827,1774137040040,-1249.32,0.000139,2]
[408696828,1774137040049,-1159.85,0.000139,2]
[408696829,1774137040058,-500.0,0.0001395,2]
[408696830,1774137040067,-500.0,0.0001395,2]
[408696831,1774137040077,-500.0,0.0001395,2]
[408696832,1774137040088,-500.0,0.0001395,2]
[408696833,1774137040097,-500.0,0.0001395,2]
[408696834,1774137040105,-500.0,0.0001395,2]
[408696835,1774137040114,-500.0,0.0001395,2]
[408696836,1774137040125,-841.38,0.00013992,2]
[408696837,1774137040134,-758.29,0.00014,2]
[408696838,1774137040144,-506.0,0.00014,2]
[408696839,1774137040154,-431.12,0.00014102,2]
[408696840,1774137040164,-16349.37,0.00014124,2]
[408696841,1774137040173,-278.35,0.00014218,2]
[408696842,1774137040182,-841.38,0.00014266,2]
[408696843,1774137040191,-386.48050511,0.00014281,2]
[408696844,1774137040200,-193.76250543,0.00014298,2]
[408696845,1774137040209,-500.0,0.00014327,2]
[408696846,1774137040218,-500.0,0.00014327,2]
[408696847,1774137040227,-500.0,0.00014327,2]
[408696848,1774137040236,-500.0,0.00014327,2]
[408696849,1774137040245,-500.0,0.00014327,2]
[408696850,1774137040254,-500.0,0.00014327,2]
[408696851,1774137040263,-500.0,0.00014327,2]
[408696852,1774137040272,-500.0,0.00014327,2]
[408696853,1774137040280,-500.0,0.00014327,2]
[408696854,1774137040290,-500.0,0.00014327,2]
[408696855,1774137040299,-312.29891464,0.00014327,2]
[408696856,1774137040308,-500.0,0.00014384,2]
[408696857,1774137040317,-1479.07,0.00014384,2]
[408696858,1774137040326,-186.299177,0.0001441,2]
[408696859,1774137040335,-1000.0,0.00014498,2]
[408696860,1774137040344,-1000.0,0.00014498,2]
[408696861,1774137040353,-1000.0,0.00014498,2]
[408696862,1774137040362,-841.4245564,0.0001454,2]
[408696863,1774137040371,-1568.0,0.00014795,2]
[408696864,1774137040380,-433.0,0.00014801,2]
[408696865,1774137040389,-386.48050511,0.0001482,2]
[408696866,1774137040398,-2000.0,0.00014858,2]
[408696867,1774137040407,-278.35,0.00014966,2]
[408696868,1774137040416,-442.3433437,0.00015004,2]
[408696869,1774137040425,-639.0,0.00015041,2]
[408696871,1774137040434,-639.0,0.00015042,2]
[408696873,1774137040444,-1500.0,0.00015046,2]
[408696875,1774137040453,-1500.0,0.00015046,2]
[408696877,1774137040462,-877.74,0.00015068,2]
[408696879,1774137040472,-1479.07,0.00015068,2]
[408696880,1774137040481,-160.0,0.00015078,2]
[408696881,1774137040491,-979.16666667,0.00015078,2]
[408696882,1774137040500,-160.0,0.00015078,2]
[408696883,1774137040510,-2351.0,0.00015152,2]
[408696884,1774137040519,-639.0,0.00015161,2]
[408696885,1774137040528,-160.0,0.00015194,7]
[408696886,1774137040537,-329.398637,0.00015194,7]
[408696887,1774137040547,-1600.0,0.00015308,2]
[408696888,1774137040557,-386.48050511,0.0001536,2]
[408696889,1774137040566,-215.0,0.00015425,2]